lending/lending_fUSD_20240110
["ID","MTS","AMOUNT","RATE_DAILY","PERIOD"]
[311087872,1704901842017,-429.08,0.00028952,2]
[311087874,1704901842027,-512473.80917047,0.00029,2]
[311087876,1704901842036,-450.0,0.00029,3]
[311087878,1704901842047,-505.75025218,0.00029,2]
[311087880,1704901842059,-634.4032601,0.0002911,4]
[311087882,1704901842069,-262.7,0.00029238,2]
[311087884,1704901842078,-176.01,0.0002941,2]
[311087886,1704901842088,-155.0,0.0002941,2]
[311087887,1704901842098,-979.43084688,0.0002941,2]
[311087890,1704901842108,-319.76784352,0.000295,3]
[311087892,1704901842117,-155.0,0.0002971,2]
[311087894,1704901842127,-286.21123975,0.00029762,2]
[311087896,1704901842138,-788.10526632,0.00029762,2]
[311087898,1704901842147,-800.0,0.000298,10]
[311087900,1704901842156,-222.24867225,0.00029833,4]
[311087902,1704901842166,-339.16,0.00029886,2]
[311087904,1704901842175,-1200.0,0.000299,10]
[311087906,1704901842184,-184.24,0.00029928,2]
[311087908,1704901842198,-429.08,0.0002993,2]
[311087910,1704901842207,-1919.71483858,0.00029935,2]
[311087912,1704901842217,-351.03,0.00029958,2]
[311087914,1704901842227,-458.82918796,0.0002998,3]
[311087916,1704901842242,-10449.25221191,0.00029999,2]
[311087918,1704901842252,-500.0,0.00029999,2]
[311087920,1704901842264,-182.4,0.00029999,2]
[311087922,1704901842274,-151.52727614,0.00029999,2]
[311087925,1704901842293,-236.0490117,0.00029999,2]
[311087927,1704901842303,-50000.0,0.0003,2]
[311087929,1704901842314,-326.0,0.0003,5]
[311087931,1704901842324,-500.0,0.0003,2]
[311087933,1704901842335,-500.0,0.0003,2]
[311087935,1704901842346,-500.0,0.0003,2]
[311087937,1704901842356,-500.0,0.0003,2]
[311087939,1704901842367,-500.0,0.0003,2]
[311087941,1704901842377,-500.0,0.0003,2]
[311087943,1704901842388,-500.0,0.0003,2]
[311087945,1704901842397,-500.0,0.0003,2]
[311087947,1704901842407,-500.0,0.0003,2]
[311087949,1704901842417,-500.0,0.0003,2]
[311087951,1704901842426,-500.0,0.0003,2]
[311087953,1704901842436,-500.0,0.0003,2]
[311087955,1704901842446,-500.0,0.0003,2]
[311087957,1704901842455,-500.0,0.0003,2]
[311087958,1704901842465,-500.0,0.0003,2]
[311087959,1704901842475,-500.0,0.0003,2]
[311087960,1704901842486,-500.0,0.0003,2]
[311087961,1704901842496,-500.0,0.0003,2]
[311087962,1704901842506,-500.0,0.0003,2]
[311087963,1704901842515,-500.0,0.0003,2]
[311087964,1704901842525,-500.0,0.0003,2]
[311087965,1704901842539,-500.0,0.0003,2]
[311087966,1704901842549,-500.0,0.0003,2]
[311087967,1704901842558,-500.0,0.0003,2]
[311087969,1704901842568,-500.0,0.0003,2]
[311087971,1704901842579,-500.0,0.0003,2]
[311087973,1704901842589,-500.0,0.0003,2]
[311087975,1704901842598,-500.0,0.0003,2]
[311087977,1704901842608,-500.0,0.0003,2]
[311087979,1704901842618,-500.0,0.0003,2]
[311087981,1704901842627,-500.0,0.0003,2]
[311087983,1704901842637,-500.0,0.0003,2]
[311087985,1704901842647,-500.0,0.0003,2]
[311087987,1704901842656,-500.0,0.0003,2]
[311087989,1704901842666,-500.0,0.0003,2]
[311087991,1704901842676,-500.0,0.0003,2]
[311087993,1704901842686,-500.0,0.0003,2]
[311087995,1704901842695,-500.0,0.0003,2]
[311087997,1704901842705,-500.0,0.0003,2]
[311087999,1704901842714,-500.0,0.0003,2]
[311088001,1704901842724,-500.0,0.0003,2]
[311088003,1704901842737,-500.0,0.0003,2]
[311088006,1704901842747,-500.0,0.0003,2]
[311088008,1704901842756,-500.0,0.0003,2]
[311088010,1704901842766,-155.0,0.0003,2]
[311088012,1704901842776,-72703.64858357,0.0003,4]
[311088014,1704901842786,-1000.0,0.0003,2]
[311088016,1704901842796,-157.0,0.0003,2]
[311088018,1704901842806,-450.0,0.0003002,3]
[311088020,1704901842815,-631.5955265,0.00030021,2]
[311088022,1704901842825,-20756.145484,0.00030033,2]
[311088026,1704901842836,-155.31240011,0.00030034,4]
[311088031,1704901842846,-99151.0,0.00030034,3]
[311088036,1704901842857,-52570.48,0.00030035,3]
[311088041,1704901842872,-2546.60638779,0.00030035,4]
[311088045,1704901842882,-809.59593566,0.00030035,4]
[311088049,1704901842891,-307984.09981147,0.00030035,4]
[311088054,1704901842902,-461.09829853,0.00030035,4]
[311088058,1704901842911,-5000.0,0.00030036,2]
[311088061,1704901842921,-250.0,0.00030036,2]
[311088064,1704901842931,-7500.0,0.00030036,2]
[311088066,1704901842941,-55555.0,0.00030036,3]
[311088068,1704901842950,-634.4032601,0.00030068,4]
[311088070,1704901842960,-285.68297929,0.00030134,4]
[311088072,1704901842970,-392.96183054,0.00030135,4]
[311088074,1704901842980,-300.0,0.00030135,2]
[311088076,1704901842992,-300.0,0.00030135,2]
[311088078,1704901843001,-296.41613783,0.00030135,2]
[311088080,1704901843010,-111532.13,0.00030135,3]
[311088082,1704901843019,-157.0,0.00030136,2]
[311088110,1704901843161,-157.0,0.00030136,2]
[311088113,1704901843172,-500.0,0.00030136,2]
[311088117,1704901843181,-500.0,0.00030136,2]
[311088119,1704901843190,-500.0,0.00030136,2]
[311088121,1704901843200,-217.99376646,0.00030136,2]
[311088123,1704901843208,-500.0,0.00030136,2]
[311088124,1704901843217,-500.0,0.00030136,2]
[311088126,1704901843226,-580.78,0.00030136,2]
[311088129,1704901843239,-500.0,0.00030136,2]
[311088131,1704901843247,-500.0,0.00030136,2]
[311088133,1704901843256,-268.26411618,0.00030136,2]
[311088135,1704901843266,-283.30538085,0.00030136,2]
[311088137,1704901843275,-500.0,0.00030136,2]
[311088138,1704901843284,-500.0,0.00030136,2]
[311088140,1704901843294,-500.0,0.00030136,2]
[311088143,1704901843303,-201.48227211,0.00030136,2]
[311088144,1704901843312,-500.0,0.00030136,2]
[311088146,1704901843321,-380.51901936,0.00030136,2]
[311088148,1704901843330,-500.0,0.00030136,2]
[311088151,1704901843340,-500.0,0.00030136,2]
[311088153,1704901843349,-500.0,0.00030136,2]
[311088154,1704901843358,-500.0,0.00030136,2]
[311088156,1704901843368,-500.0,0.00030136,2]
[311088158,1704901843377,-500.0,0.00030136,2]
[311088161,1704901843386,-624.51,0.00030136,2]
[311088163,1704901843396,-769.6,0.00030136,2]
[311088165,1704901843405,-500.0,0.00030136,2]
[311088167,1704901843415,-500.0,0.00030136,2]
[311088168,1704901843424,-500.0,0.00030136,2]
[311088170,1704901843433,-458.73512884,0.00030136,2]
[311088172,1704901843442,-646.9,0.00030136,2]
[311088174,1704901843451,-500.0,0.00030136,2]
[311088176,1704901843460,-530.33,0.00030136,2]
[311088178,1704901843470,-288.68457683,0.00030136,2]
[311088180,1704901843479,-815.38,0.00030136,2]
[311088182,1704901843489,-500.0,0.00030136,2]
[311088184,1704901843498,-500.0,0.00030136,2]
[311088186,1704901843507,-332.28976882,0.00030136,2]
[311088188,1704901843516,-500.0,0.00030136,2]
[311088190,1704901843526,-500.0,0.00030136,2]
[311088192,1704901843535,-272.82801775,0.00030136,2]
[311088194,1704901843544,-500.0,0.00030136,2]
[311088196,1704901843554,-393.4802506,0.00030136,2]
[311088198,1704901843563,-500.0,0.00030136,2]
[311088200,1704901843572,-343.54758274,0.00030136,2]
[311088202,1704901843581,-500.0,0.00030136,2]
[311088204,1704901843590,-500.0,0.00030136,2]
[311088206,1704901843599,-500.0,0.00030136,2]
[311088208,1704901843608,-500.0,0.00030136,2]
[311088210,1704901843617,-500.0,0.00030136,2]
[311088212,1704901843626,-500.0,0.00030136,2]
[311088214,1704901843636,-603.48,0.00030136,2]
[311088216,1704901843645,-755.23,0.00030136,2]
[311088218,1704901843654,-500.0,0.00030136,2]
[311088220,1704901843663,-330.53875792,0.00030136,2]
[311088222,1704901843672,-500.0,0.00030136,2]
[311088224,1704901843682,-550.99,0.00030136,2]
[311088226,1704901843691,-500.0,0.00030136,2]
[311088229,1704901843702,-500.0,0.00030136,2]
[311088230,1704901843711,-500.0,0.00030136,2]
[311088232,1704901843721,-500.0,0.00030136,2]
[311088235,1704901843731,-500.0,0.00030136,2]
[311088237,1704901843742,-500.0,0.00030136,2]
[311088239,1704901843752,-500.0,0.00030136,2]
[311088240,1704901843761,-417.71743748,0.00030136,2]
[311088242,1704901843769,-500.0,0.00030136,2]
[311088244,1704901843779,-500.0,0.00030136,2]
[311088246,1704901843788,-499.999999,0.00030136,2]
[311088248,1704901843797,-500.0,0.00030136,2]
[311088250,1704901843807,-500.0,0.00030136,2]
[311088252,1704901843816,-500.0,0.00030136,2]
[311088254,1704901843826,-500.0,0.00030136,2]
[311088256,1704901843836,-500.0,0.00030136,2]
[311088258,1704901843846,-157.57699337,0.00030136,2]
[311088260,1704901843856,-631.6852436,0.00030136,2]
[311088263,1704901843867,-500.0,0.00030136,2]
[311088264,1704901843877,-500.0,0.00030136,2]
[311088266,1704901843887,-500.0,0.00030136,2]
[311088268,1704901843897,-500.0,0.00030136,2]
[311088271,1704901843908,-500.0,0.00030136,2]
[311088273,1704901843919,-800.14,0.00030136,2]
[311088274,1704901843929,-500.0,0.00030136,2]
[311088276,1704901843938,-500.0,0.00030136,2]
[311088278,1704901843948,-500.0,0.00030136,2]
[311088280,1704901843957,-707.25,0.00030136,2]
[311088282,1704901843967,-500.0,0.00030136,2]
[311088284,1704901843978,-500.0,0.00030136,2]
[311088287,1704901843993,-500.0,0.00030136,2]
[311088288,1704901844003,-500.0,0.00030136,2]
[311088290,1704901844012,-271.11218616,0.00030136,2]
[311088292,1704901844022,-500.0,0.00030136,2]
[311088294,1704901844032,-500.0,0.00030136,2]
[311088296,1704901844041,-500.0,0.00030136,2]
[311088298,1704901844051,-497.09488282,0.00030136,2]
[311088300,1704901844060,-520.54,0.00030136,2]
[311088302,1704901844070,-500.0,0.00030136,2]
[311088304,1704901844080,-500.0,0.00030136,2]
[311088307,1704901844090,-500.0,0.00030136,2]
[311088308,1704901844100,-500.0,0.00030136,2]
[311088310,1704901844110,-500.0,0.00030136,2]
[311088313,1704901844119,-500.0,0.00030136,2]
[311088315,1704901844131,-500.0,0.00030136,2]
[311088317,1704901844141,-500.0,0.00030136,2]
[311088319,1704901844151,-500.0,0.00030136,2]
[311088321,1704901844161,-672.75,0.00030136,2]
[311088323,1704901844170,-528.46,0.00030136,2]
[311088326,1704901844189,-500.0,0.00030136,2]
[311088328,1704901844199,-500.0,0.00030136,2]
[311088330,1704901844210,-173.06949223,0.00030136,2]
[311088332,1704901844219,-150.0,0.00030136,2]
[311088334,1704901844228,-500.0,0.00030136,2]
[311088336,1704901844240,-500.0,0.00030136,2]
[311088338,1704901844248,-500.0,0.00030136,2]
[311088340,1704901844257,-500.0,0.00030136,2]
[311088342,1704901844266,-500.0,0.00030136,2]
[311088344,1704901844278,-500.0,0.00030136,2]
[311088346,1704901844288,-500.0,0.00030136,2]
[311088348,1704901844298,-500.0,0.00030136,2]
[311088350,1704901844307,-500.0,0.00030136,2]
[311088352,1704901844316,-500.0,0.00030136,2]
[311088354,1704901844326,-500.0,0.00030136,2]
[311088356,1704901844335,-500.0,0.00030136,2]
[311088358,1704901844345,-500.0,0.00030136,2]
[311088360,1704901844355,-500.0,0.00030136,2]
[311088362,1704901844365,-500.0,0.00030136,2]
[311088364,1704901844374,-500.0,0.00030136,2]
[311088366,1704901844384,-500.0,0.00030136,2]
[311088368,1704901844393,-500.0,0.00030136,2]
[311088370,1704901844402,-1198.47,0.00030136,2]
[311088372,1704901844412,-632.47566799,0.00030136,2]
[311088374,1704901844421,-256.94252219,0.00030136,2]
[311088376,1704901844431,-500.0,0.00030136,2]
[311088379,1704901844441,-500.0,0.00030136,2]
[311088380,1704901844451,-500.0,0.00030136,2]
[311088382,1704901844461,-500.0,0.00030136,2]
[311088384,1704901844471,-500.0,0.00030136,2]
[311088387,1704901844481,-632.59,0.00030136,2]
[311088388,1704901844493,-269.63959669,0.00030136,2]
[311088390,1704901844502,-500.0,0.00030136,2]
[311088392,1704901844511,-1056.6,0.00030136,2]
[311088395,1704901844521,-500.0,0.00030136,2]
[311088396,1704901844530,-500.0,0.00030136,2]
[311088397,1704901844539,-500.0,0.00030136,2]
[311088398,1704901844548,-500.0,0.00030136,2]
[311088400,1704901844556,-500.0,0.00030136,2]
[311088402,1704901844566,-500.0,0.00030136,2]
[311088404,1704901844576,-207.58163123,0.00030136,2]
[311088406,1704901844585,-500.0,0.00030136,2]
[311088408,1704901844594,-500.0,0.00030136,2]
[311088410,1704901844603,-500.0,0.00030136,2]
[311088412,1704901844613,-500.0,0.00030136,2]
[311088414,1704901844623,-390.53790041,0.00030136,2]
[311088416,1704901844632,-500.0,0.00030136,2]
[311088418,1704901844642,-500.0,0.00030136,2]
[311088420,1704901844651,-500.0,0.00030136,2]
[311088422,1704901844660,-500.0,0.00030136,2]
[311088424,1704901844670,-500.0,0.00030136,2]
[311088426,1704901844679,-425.29687561,0.00030136,2]
[311088428,1704901844689,-500.0,0.00030136,2]
[311088430,1704901844699,-500.0,0.00030136,2]
[311088432,1704901844708,-500.0,0.00030136,2]
[311088434,1704901844717,-500.0,0.00030136,2]
[311088436,1704901844727,-500.0,0.00030136,2]
[311088438,1704901844738,-500.0,0.00030136,2]
[311088440,1704901844748,-500.0,0.00030136,2]
[311088442,1704901844758,-500.0,0.00030136,2]
[311088444,1704901844768,-586.76,0.00030136,2]
[311088446,1704901844777,-731.92,0.00030136,2]
[311088448,1704901844786,-500.0,0.00030136,2]
[311088450,1704901844796,-9210.75,0.00030136,2]
[311088452,1704901844805,-500.0,0.00030136,2]
[311088454,1704901844814,-500.0,0.00030136,2]
[311088456,1704901844824,-500.0,0.00030136,2]
[311088458,1704901844834,-809.77,0.00030136,2]
[311088460,1704901844844,-663.73,0.00030136,2]
[311088462,1704901844854,-521.68891175,0.00030136,2]
[311088464,1704901844864,-500.0,0.00030136,2]
[311088466,1704901844875,-500.0,0.00030136,2]
[311088468,1704901844884,-662.54,0.00030136,2]
[311088470,1704901844895,-500.0,0.00030136,2]
[311088472,1704901844905,-500.0,0.00030136,2]
[311088474,1704901844915,-500.0,0.00030136,2]
[311088476,1704901844925,-500.0,0.00030136,2]
[311088478,1704901844935,-6627.1,0.00030136,2]
[311088480,1704901844945,-534.71,0.00030136,2]
[311088482,1704901844955,-500.0,0.00030136,2]
[311088484,1704901844966,-1891.17,0.00030136,2]
[311088486,1704901844975,-500.0,0.00030136,2]
[311088489,1704901844986,-1534.85,0.00030136,2]
[311088491,1704901844996,-487.0110398,0.00030136,2]
[311088493,1704901845005,-500.0,0.00030136,2]
[311088495,1704901845014,-2924.88,0.00030136,2]
[311088497,1704901845024,-500.0,0.00030136,2]
[311088498,1704901845033,-500.0,0.00030136,2]
[311088501,1704901845043,-500.0,0.00030136,2]
[311088502,1704901845053,-765.82,0.00030136,2]
[311088503,1704901845062,-500.0,0.00030136,2]
[311088504,1704901845072,-500.0,0.00030136,2]
[311088505,1704901845081,-500.0,0.00030136,2]
[311088506,1704901845091,-3449.62,0.00030136,2]
[311088507,1704901845101,-500.0,0.00030136,2]
[311088508,1704901845110,-500.0,0.00030136,2]
[311088509,1704901845120,-500.0,0.00030136,2]
[311088511,1704901845129,-500.0,0.00030136,2]
[311088513,1704901845139,-224.84002369,0.00030136,2]
[311088515,1704901845149,-500.0,0.00030136,2]
[311088518,1704901845159,-500.0,0.00030136,2]
[311088520,1704901845168,-500.0,0.00030136,2]
[311088522,1704901845178,-750.66,0.00030136,2]
[311088524,1704901845187,-500.0,0.00030136,7]
[311088526,1704901845197,-500.0,0.00030136,2]
[311088528,1704901845206,-579.7,0.00030136,2]
[311088530,1704901845218,-959.31,0.00030136,2]
[311088532,1704901845227,-7311.05,0.00030136,2]
[311088534,1704901845237,-500.0,0.00030136,2]
[311088536,1704901845246,-1065.45,0.00030136,2]
[311088538,1704901845254,-500.0,0.00030136,2]
[311088540,1704901845263,-1035.64,0.00030136,2]
[311088542,1704901845273,-500.0,0.00030136,2]
[311088544,1704901845282,-500.0,0.00030136,2]
[311088546,1704901845291,-500.0,0.00030136,2]
[311088548,1704901845301,-500.0,0.00030136,2]
[311088550,1704901845310,-500.0,0.00030136,2]
[311088552,1704901845319,-500.0,0.00030136,2]
[311088554,1704901845328,-2187.38,0.00030136,2]
[311088556,1704901845338,-613.18150849,0.00030136,2]
[311088558,1704901845347,-500.0,0.00030136,2]
[311088560,1704901845356,-702.32,0.00030136,2]
[311088562,1704901845366,-500.0,0.00030136,2]
[311088564,1704901845375,-500.0,0.00030136,2]
[311088566,1704901845384,-500.0,0.00030136,2]
[311088568,1704901845394,-500.0,0.00030136,2]
[311088570,1704901845404,-500.0,0.00030136,2]
[311088572,1704901845414,-1173.1,0.00030136,2]
[311088574,1704901845423,-977.57,0.00030136,2]
[311088576,1704901845432,-500.0,0.00030136,2]
[311088578,1704901845441,-500.0,0.00030136,2]
[311088580,1704901845450,-176.59999452,0.00030136,2]
[311088582,1704901845459,-500.0,0.00030136,2]
[311088584,1704901845469,-905.27,0.00030136,2]
[311088585,1704901845478,-500.0,0.00030136,2]
[311088587,1704901845486,-2184.67,0.00030136,2]
[311088589,1704901845495,-539.72,0.00030136,2]
[311088591,1704901845505,-500.0,0.00030136,2]
[311088594,1704901845515,-500.0,0.00030136,2]
[311088595,1704901845524,-2851.32,0.00030136,2]
[311088598,1704901845534,-554.29,0.00030136,2]
[311088600,1704901845543,-1084.11,0.00030136,2]
[311088601,1704901845552,-743.97,0.00030136,2]
[311088603,1704901845562,-298.65765207,0.00030136,2]
[311088605,1704901845571,-2290.02,0.00030136,2]
[311088608,1704901845581,-500.0,0.00030136,2]
[311088609,1704901845590,-652.69,0.00030136,2]
[311088611,1704901845600,-500.0,0.00030136,2]
[311088613,1704901845609,-3550.06,0.00030136,2]
[311088615,1704901845618,-500.0,0.00030136,2]
[311088617,1704901845627,-2468.23,0.00030136,2]
[311088619,1704901845636,-741.58,0.00030136,2]
[311088621,1704901845645,-500.0,0.00030136,2]
[311088623,1704901845654,-1013.12,0.00030136,2]
[311088625,1704901845663,-216.24142719,0.00030136,2]
[311088627,1704901845672,-2755.49,0.00030136,2]
[311088629,1704901845681,-500.0,0.00030136,2]
[311088631,1704901845690,-1367.5,0.00030136,2]
[311088633,1704901845700,-523.18,0.00030136,2]
[311088635,1704901845709,-606.41,0.00030136,2]
[311088637,1704901845718,-1010.49,0.00030136,2]
[311088639,1704901845727,-1214.0,0.00030136,2]
[311088641,1704901845737,-500.0,0.00030136,2]
[311088643,1704901845747,-500.0,0.00030136,2]
[311088645,1704901845756,-500.0,0.00030136,2]
[311088647,1704901845765,-500.0,0.00030136,2]
[311088649,1704901845775,-500.0,0.00030136,2]
[311088651,1704901845784,-592.89435823,0.00030136,2]
[311088653,1704901845793,-1052.82,0.00030136,2]
[311088655,1704901845803,-1111.49,0.00030136,2]
[311088657,1704901845812,-22537.3,0.00030136,2]
[311088659,1704901845821,-500.0,0.00030136,2]
[311088661,1704901845830,-652.84,0.00030136,2]
[311088662,1704901845839,-517.3,0.00030136,2]
[311088664,1704901845849,-500.0,0.00030136,2]
[311088666,1704901845858,-500.0,0.00030136,2]
[311088669,1704901845867,-1027.93,0.00030136,2]
[311088672,1704901845878,-500.0,0.00030136,2]
[311088675,1704901845887,-500.0,0.00030136,2]
[311088677,1704901845896,-619.25,0.00030136,2]
[311088678,1704901845905,-500.0,0.00030136,2]
[311088680,1704901845915,-500.0,0.00030136,2]
[311088683,1704901845925,-540.69,0.00030136,2]
[311088685,1704901845934,-500.0,0.00030136,2]
[311088686,1704901845943,-446.99327888,0.00030136,2]
[311088688,1704901845953,-500.0,0.00030136,2]
[311088691,1704901845964,-500.0,0.00030136,2]
[311088695,1704901845974,-531.22,0.00030136,2]
[311088697,1704901845984,-402.42831288,0.00030136,2]
[311088700,1704901845995,-822.79,0.00030136,2]
[311088703,1704901846003,-949.96,0.00030136,2]
[311088705,1704901846014,-561.93,0.00030136,2]
[311088708,1704901846024,-841.87,0.00030136,2]
[311088711,1704901846034,-500.0,0.00030136,2]
[311088714,1704901846044,-500.0,0.00030136,2]
[311088717,1704901846053,-4149.02,0.00030136,2]
[311088719,1704901846063,-500.0,0.00030136,2]
[311088721,1704901846072,-500.0,0.00030136,2]
[311088723,1704901846081,-500.0,0.00030136,2]
[311088725,1704901846091,-588.0,0.00030136,2]
[311088727,1704901846100,-1144.17,0.00030136,2]
[311088729,1704901846109,-500.0,0.00030136,2]
[311088731,1704901846118,-1384.54,0.00030136,2]
[311088733,1704901846127,-2853.73,0.00030136,2]
[311088735,1704901846137,-1585.1,0.00030136,2]
[311088737,1704901846146,-565.73,0.00030136,2]
[311088739,1704901846155,-518.12,0.00030136,2]
[311088741,1704901846164,-546.42,0.00030136,2]
[311088743,1704901846173,-500.0,0.00030136,2]
[311088745,1704901846182,-5771.71,0.00030136,2]
[311088747,1704901846192,-1094.06,0.00030136,2]
[311088749,1704901846201,-500.0,0.00030136,2]
[311088752,1704901846211,-1075.13,0.00030136,2]
[311088754,1704901846221,-500.0,0.00030136,2]
[311088756,1704901846230,-500.0,0.00030136,2]
[311088758,1704901846244,-228.28415045,0.00030136,2]
[311088760,1704901846253,-704.92,0.00030136,2]
[311088761,1704901846262,-1529.8,0.00030136,2]
[311088763,1704901846272,-6554.84,0.00030136,2]
[311088766,1704901846282,-500.0,0.00030136,2]
[311088768,1704901846292,-500.0,0.00030136,2]
[311088769,1704901846302,-500.0,0.00030136,2]
[311088771,1704901846311,-515.73,0.00030136,2]
[311088774,1704901846321,-500.0,0.00030136,2]
[311088775,1704901846330,-500.0,0.00030136,4]
[311088777,1704901846340,-500.0,0.00030136,2]
[311088779,1704901846350,-606.81,0.00030136,2]
[311088781,1704901846359,-3847.89,0.00030136,2]
[311088784,1704901846368,-1873.06,0.00030136,2]
[311088785,1704901846378,-500.0,0.00030136,2]
[311088788,1704901846387,-1237.27,0.00030136,2]
[311088789,1704901846397,-500.0,0.00030136,2]
[311088791,1704901846406,-722.18,0.00030136,2]
[311088793,1704901846416,-500.0,0.00030136,2]
[311088795,1704901846425,-682.55,0.00030136,2]
[311088797,1704901846434,-1162.53,0.00030136,2]
[311088799,1704901846443,-890.2,0.00030136,2]
[311088801,1704901846452,-500.0,0.00030136,2]
[311088803,1704901846461,-500.0,0.00030136,2]
[311088805,1704901846470,-500.0,0.00030136,2]
[311088807,1704901846480,-500.0,0.00030136,2]
[311088809,1704901846493,-500.0,0.00030136,2]
[311088811,1704901846502,-1171.63,0.00030136,2]
[311088813,1704901846511,-589.12,0.00030136,2]
[311088815,1704901846521,-838.5,0.00030136,2]
[311088817,1704901846530,-1149.89,0.00030136,2]
[311088819,1704901846540,-1201.37,0.00030136,2]
[311088821,1704901846550,-596.51,0.00030136,2]
[311088824,1704901846559,-1798.18,0.00030136,2]
[311088825,1704901846569,-1002.66,0.00030136,2]
[311088827,1704901846578,-1893.93,0.00030136,2]
[311088829,1704901846587,-860.47,0.00030136,2]
[311088831,1704901846597,-500.0,0.00030136,2]
[311088833,1704901846607,-500.0,0.00030136,2]
[311088836,1704901846616,-633.99,0.00030136,2]
[311088837,1704901846626,-542.38,0.00030136,2]
[311088840,1704901846636,-500.0,0.00030136,2]
[311088842,1704901846645,-3386.41,0.00030136,2]
[311088843,1704901846654,-756.19,0.00030136,2]
[311088844,1704901846663,-500.0,0.00030136,2]
[311088845,1704901846674,-500.0,0.00030136,2]
[311088846,1704901846683,-151.02641219,0.00030136,2]
[311088847,1704901846693,-500.0,0.00030136,2]
[311088849,1704901846703,-816.45,0.00030136,2]
[311088851,1704901846713,-500.0,0.00030136,2]
[311088853,1704901846723,-3242.4,0.00030136,2]
[311088855,1704901846733,-500.0,0.00030136,2]
[311088856,1704901846746,-500.0,0.00030136,2]
[311088857,1704901846756,-1694.82,0.00030136,2]
[311088859,1704901846766,-500.0,0.00030136,2]
[311088861,1704901846776,-500.0,0.00030136,2]
[311088862,1704901846786,-1281.58,0.00030136,2]
[311088864,1704901846801,-500.0,0.00030136,2]
[311088866,1704901846811,-500.0,0.00030136,2]
[311088868,1704901846821,-153.84,0.00030137,2]
[311088870,1704901846831,-262.7,0.00030265,2]
[311088871,1704901846840,-2004.97608232,0.00030375,2]
[311088872,1704901846850,-1919.71483849,0.00030386,2]
[311088873,1704901846860,-1500.0,0.00030409,2]
[311088874,1704901846870,-479.58552563,0.0003041,2]
[311088875,1704901846880,-500.0,0.0003041,2]
[311088876,1704901846890,-500.0,0.0003041,2]
[311088877,1704901846900,-500.0,0.0003041,2]
[311088878,1704901846910,-365.20443112,0.0003041,2]
[311088879,1704901846920,-580.78,0.0003041,2]
[311088880,1704901846929,-500.0,0.0003041,2]
[311088881,1704901846939,-500.0,0.0003041,2]
[311088883,1704901846948,-500.0,0.0003041,2]
[311088885,1704901846958,-500.0,0.0003041,2]
[311088886,1704901846968,-500.0,0.0003041,2]
[311088887,1704901846978,-500.0,0.0003041,2]
[311088888,1704901846988,-500.0,0.0003041,2]
[311088889,1704901846998,-500.0,0.0003041,2]
[311088890,1704901847008,-500.0,0.0003041,2]
[311088892,1704901847017,-500.0,0.0003041,2]